bitfinex/quotes_ETHUSD_20230117
["timestamp","ask_amount","ask_price","bid_price","bid_amount"]
[1673979337659,0.00244505,1576.9,1576.8,38.57286517]
[1673979337660,0.00017661,1576.9,1576.8,38.57286517]
[1673979339329,0.00017661,1576.9,1576.8,39.51436561]
[1673979339554,0.00017661,1576.9,1576.8,45.82886517]
[1673979339775,0.09712413,1577.2,1576.9,1.0]
[1673979339953,0.09712413,1577.2,1577.1,2.404]
[1673979340164,0.09712413,1577.2,1577.1,27.54287407]
[1673979340390,0.09712413,1577.2,1577.1,28.86411118]
[1673979340695,0.09712413,1577.2,1577.1,29.74051072]
[1673979341449,0.09712413,1577.2,1577.1,28.86411118]
[1673979341676,0.09712413,1577.2,1577.1,33.24388931]
[1673979342073,0.09712413,1577.2,1577.1,32.85349393]
[1673979343533,0.09712413,1577.2,1577.1,33.24322168]
[1673979343749,0.09712413,1577.2,1577.1,32.85349393]
[1673979345061,0.09712413,1577.2,1577.1,33.24333184]
[1673979345208,0.09712413,1577.2,1577.1,33.24332829]
[1673979345532,0.09712413,1577.2,1577.1,32.85349393]
[1673979346198,0.09712413,1577.2,1577.1,38.82787693]
[1673979347222,0.09712413,1577.2,1577.1,34.45312036]
[1673979347438,0.09712413,1577.2,1577.1,34.06349393]
[1673979350864,0.09712413,1577.2,1577.1,37.56349393]
[1673979351481,0.09712413,1577.2,1577.1,34.06349393]
[1673979351976,0.10579118,1577.3,1577.2,1.0]
[1673979352194,0.10579118,1577.3,1577.2,32.03046529]
[1673979352517,0.10579118,1577.3,1577.2,32.73130702]
[1673979355023,0.10579118,1577.3,1577.2,31.73130702]
[1673979355231,0.10579118,1577.3,1577.2,31.09456529]
[1673979355481,0.10579118,1577.3,1577.2,28.92056529]
[1673979360322,0.10579118,1577.3,1577.2,28.11730702]
[1673979365328,0.10579118,1577.3,1577.2,27.48056529]
[1673979365812,1.26179118,1577.3,1577.2,25.43174407]
[1673979366031,1.22979118,1577.3,1577.2,25.20174407]
[1673979366213,1.22979118,1577.3,1577.2,22.20174407]
[1673979366918,0.10579118,1577.3,1577.2,22.20174407]
[1673979367587,0.10579118,1577.3,1577.2,25.43174407]
[1673979370313,0.10579118,1577.3,1577.2,28.60899348]
[1673979371253,0.10579118,1577.3,1577.2,25.43174407]
[1673979372055,0.10225831,1577.3,1577.2,25.43174407]
[1673979377315,0.10225831,1577.3,1577.2,25.61873767]
[1673979379451,0.10225831,1577.3,1577.2,26.51665988]
[1673979379783,0.10225831,1577.3,1577.2,25.61873767]
[1673979380803,0.10225831,1577.3,1577.2,29.13968657]
[1673979381021,0.10225831,1577.3,1577.2,31.8457206]
[1673979384174,0.10225831,1577.3,1577.2,33.25642964]
[1673979387059,0.10225831,1577.3,1577.2,31.8457206]
[1673979387288,0.10225831,1577.3,1577.2,33.82868791]
[1673979389024,0.10225831,1577.3,1577.2,34.46542964]
[1673979389271,0.10225831,1577.3,1577.2,37.66080128]
[1673979389437,0.10225831,1577.3,1577.2,40.13082635]
[1673979389648,0.02379169,1577.3,1577.2,45.06045731]
[1673979390329,0.02379169,1577.3,1577.2,45.54103141]
[1673979391380,0.02379169,1577.3,1577.2,45.04913875]
[1673979392542,0.02379169,1577.3,1577.2,47.42747965]
[1673979393222,0.02379169,1577.3,1577.2,45.04913875]
[1673979393652,0.09712413,1577.4,1577.2,45.04913875]
[1673979393923,0.09712413,1577.4,1577.3,38.29878773]
[1673979394107,0.09712413,1577.4,1577.3,38.36288773]
[1673979394451,0.09712413,1577.4,1577.3,38.99962946]
[1673979396123,0.09712413,1577.4,1577.3,35.49962946]
[1673979397493,0.09712413,1577.4,1577.3,36.44235299]
[1673979397663,0.09712413,1577.4,1577.3,35.44235299]
[1673979398486,0.09712413,1577.4,1577.3,34.02783901]
[1673979401279,0.09712413,1577.4,1577.3,33.39109728]
[1673979401600,0.09712413,1577.4,1577.3,34.02783901]
[1673979403018,0.09712413,1577.4,1577.3,32.44837375]
[1673979403267,0.09712413,1577.4,1577.3,33.39109728]
[1673979403646,1.25312413,1577.4,1577.3,27.45818341]
[1673979403864,1.22112413,1577.4,1577.3,25.61753767]
[1673979404306,1.22112413,1577.4,1577.3,25.20054407]
[1673979404479,0.09712413,1577.4,1577.3,25.20054407]
[1673979405164,0.09712413,1577.4,1577.3,28.47066497]
[1673979405329,0.09712413,1577.4,1577.3,33.80484771]
[1673979405545,0.09712413,1577.4,1577.3,34.34082951]
[1673979405790,0.09712413,1577.4,1577.3,32.92631553]
[1673979406438,0.09712413,1577.4,1577.3,31.72531553]
[1673979407371,0.09712413,1577.4,1577.3,27.8184529]
[1673979407742,0.09712413,1577.5,1577.4,1.33580836]
[1673979407951,0.09712413,1577.5,1577.4,33.46735335]
[1673979408212,0.09712413,1577.5,1577.4,37.16819508]
[1673979409184,0.09712413,1577.5,1577.4,37.16427731]
[1673979409397,0.09712413,1577.5,1577.4,43.6865836]
[1673979409565,4.13e-06,1577.5,1577.4,43.6865836]
[1673979412915,4.13e-06,1577.5,1577.4,43.04984187]
[1673979413284,4.13e-06,1577.5,1577.4,43.6865836]
[1673979416967,4.13e-06,1577.5,1577.4,51.5935836]
[1673979417129,4.13e-06,1577.5,1577.4,59.3165794]
[1673979417346,0.11983052,1577.9,1577.6,6.698]
[1673979417555,0.11983052,1577.9,1577.8,5.52362407]
[1673979417762,0.11983052,1577.9,1577.8,24.60151407]
[1673979417968,0.11983052,1577.9,1577.8,28.4682558]
[1673979419950,0.11983052,1577.9,1577.8,29.05562463]
[1673979420159,0.11983052,1577.9,1577.8,31.9682558]
[1673979420414,0.11983052,1577.9,1577.8,32.23998466]
[1673979420626,0.11983052,1577.9,1577.8,28.73998466]
[1673979421211,0.11983052,1577.9,1577.8,33.44098466]
[1673979421631,0.11983052,1577.9,1577.8,35.40770153]
[1673979421877,0.11983052,1577.9,1577.8,31.90770153]
[1673979422472,0.11983052,1577.9,1577.8,30.96586233]
[1673979422678,0.11983052,1577.9,1577.8,34.70486233]
[1673979422953,0.11983052,1577.9,1577.8,31.20486233]
[1673979423992,0.11983052,1577.9,1577.8,34.70486233]
[1673979424204,0.11983052,1577.9,1577.8,31.20486233]
[1673979424616,0.11983052,1577.9,1577.8,30.17998466]
[1673979425780,0.11983052,1577.9,1577.8,31.20384125]
[1673979428263,0.11983052,1577.9,1577.8,30.56709952]
[1673979431241,0.11983052,1577.9,1577.8,29.54324293]
[1673979432681,0.11983052,1577.9,1577.8,28.95586454]
[1673979436754,0.11983052,1577.9,1577.8,32.45586454]
[1673979437242,0.01400396,1577.9,1577.8,35.02187203]
[1673979437403,0.11983052,1578.0,1577.9,20.10927176]
[1673979437614,0.11983052,1578.0,1577.9,33.02320639]
[1673979439390,0.11983052,1578.0,1577.9,33.02558618]
[1673979439848,0.11983052,1578.0,1577.9,34.46858618]
[1673979440065,0.11983052,1578.0,1577.9,37.96858618]
[1673979440603,0.11983052,1578.0,1577.9,35.40763425]
[1673979440760,0.11983052,1578.0,1577.9,37.96858618]
[1673979441544,0.11983052,1578.0,1577.9,34.46858618]
[1673979442033,0.11983052,1578.0,1577.9,37.96858618]
[1673979442248,0.11983052,1578.0,1577.9,38.90763425]
[1673979442797,0.00083052,1578.1,1578.0,8.4404335]
[1673979442985,0.12655948,1578.3,1578.1,1.0]
[1673979443329,0.12655948,1578.3,1578.2,31.07356097]
[1673979443539,0.12655948,1578.3,1578.2,35.76420905]
[1673979444119,0.12655948,1578.3,1578.2,39.26420905]
[1673979444325,0.13513423,1578.4,1578.3,1.0]
[1673979444591,0.13513423,1578.4,1578.3,32.92396215]
[1673979444797,0.13513423,1578.4,1578.3,28.45671691]
[1673979445332,0.13513423,1578.4,1578.3,29.48685483]
[1673979446598,0.13513423,1578.4,1578.3,28.45671691]
[1673979446805,0.13513423,1578.4,1578.3,30.54806738]
[1673979447019,0.13513423,1578.4,1578.3,31.57753434]
[1673979448468,0.13513423,1578.4,1578.3,32.51598633]
[1673979448802,0.01034256,1578.4,1578.3,32.51598633]
[1673979450689,0.01034256,1578.4,1578.3,31.57753434]
[1673979450901,0.01034256,1578.4,1578.3,30.54806738]
[1673979451375,0.01034256,1578.4,1578.3,27.50986454]
[1673979452581,0.00122199,1578.4,1578.3,27.50986454]
[1673979452799,0.00122199,1578.4,1578.3,29.12563267]
[1673979453915,0.00122199,1578.4,1578.3,28.10117198]
[1673979454164,0.00122199,1578.4,1578.3,27.50986454]
[1673979455173,0.00122199,1578.4,1578.3,29.12668711]
[1673979455386,0.00122199,1578.4,1578.3,28.10156021]
[1673979455594,0.00122199,1578.4,1578.3,26.01020974]
[1673979456168,0.00122199,1578.4,1578.3,25.41851407]
[1673979459045,0.00122199,1578.4,1578.3,26.01041729]
[1673979459566,0.00122199,1578.4,1578.3,26.64715902]
[1673979459780,0.00122199,1578.4,1578.3,30.10633312]
[1673979460036,0.00122199,1578.4,1578.3,33.51339622]
[1673979460871,0.00122199,1578.4,1578.3,37.01339622]
[1673979461084,0.13513423,1578.5,1578.4,2.15677801]
[1673979461402,0.13513423,1578.5,1578.4,35.00506918]
[1673979461626,0.13513423,1578.5,1578.4,39.21712955]
[1673979461774,0.14106,1578.7,1578.5,0.13499577]
[1673979461981,0.14106,1578.7,1578.6,12.56734407]
[1673979462187,0.14106,1578.7,1578.6,35.86424902]
[1673979462402,0.14602318,1578.8,1578.7,0.141]
[1673979462670,0.14602318,1578.8,1578.7,10.5481384]
[1673979462880,0.14602318,1578.8,1578.7,33.75194013]
[1673979463485,0.14602318,1578.8,1578.7,32.72632902]
[1673979463701,0.14602318,1578.8,1578.7,29.22632902]
[1673979463875,0.14602318,1578.8,1578.7,29.89612902]
[1673979464434,0.14602318,1578.8,1578.7,32.8042258]
[1673979465243,0.15148391,1578.9,1578.8,1.0]
[1673979465456,0.15148391,1578.9,1578.8,24.78838407]
[1673979465721,0.15148391,1578.9,1578.8,38.6872258]
[1673979465873,0.15148391,1578.9,1578.8,35.4483999]
[1673979466085,0.066,1579.3,1578.9,7.849]
[1673979466335,21.2053,1579.5,1579.1,5.55062407]
[1673979466668,12.1195,1579.5,1579.1,30.72419448]
[1673979466815,2.74e-06,1579.2,1579.1,38.28893621]
[1673979467026,2.74e-06,1579.2,1579.1,31.59093621]
[1673979467343,2.74e-06,1579.2,1579.1,30.59093621]
[1673979467764,2.74e-06,1579.2,1579.1,25.40888407]
[1673979467993,2.74e-06,1579.2,1579.1,25.17888407]
[1673979469499,2.74e-06,1579.2,1579.1,25.40888407]
[1673979469807,2.74e-06,1579.2,1579.1,26.0456258]
[1673979471893,0.648121,1579.4,1579.2,1.0]
[1673979472083,0.648121,1579.4,1579.3,28.67426407]
[1673979472297,0.173121,1579.4,1579.3,32.3751058]
[1673979473469,0.648121,1579.4,1579.3,31.73836407]
[1673979474728,0.648121,1579.4,1579.3,32.3751058]
[1673979476730,0.648121,1579.4,1579.3,26.0431958]
[1673979477230,0.648121,1579.4,1579.3,25.8131958]
[1673979477604,0.648121,1579.4,1579.3,25.17645407]
[1673979477965,0.648121,1579.4,1579.3,28.39098765]
[1673979478179,0.475,1579.4,1579.3,28.39098765]
[1673979478550,0.475,1579.4,1579.3,29.02772938]
[1673979478757,12.244621,1579.5,1579.3,29.25772938]
[1673979478919,11.769621,1579.5,1579.4,25.34115407]
[1673979479126,0.066,1579.5,1579.4,25.40525407]
[1673979479334,9.2158,1579.6,1579.4,27.27784255]
[1673979479589,9.2158,1579.6,1579.5,22.10995407]
[1673979479754,9.2158,1579.6,1579.5,25.40405407]
[1673979479755,0.066,1579.6,1579.5,25.40405407]
[1673979479971,0.16140241,1579.7,1579.5,25.40405407]
[1673979480173,0.16140241,1579.7,1579.6,9.67733407]
[1673979480385,0.16140241,1579.7,1579.6,22.40285407]
[1673979480874,0.16140241,1579.7,1579.6,26.07265407]
[1673979482705,0.16140241,1579.7,1579.6,26.7093958]
[1673979484185,0.16140241,1579.7,1579.6,26.0395958]
[1673979485346,0.16140241,1579.7,1579.6,25.40285407]
[1673979485536,0.16140241,1579.7,1579.6,26.0395958]
[1673979485746,0.16140241,1579.7,1579.6,27.4765958]
[1673979486073,2.41e-06,1579.7,1579.6,30.9765958]
[1673979486290,22.58030241,1580.0,1579.6,35.1055699]
[1673979486497,22.58030241,1580.0,1579.9,3.11662407]
[1673979486702,1.76740241,1580.0,1579.9,31.66466407]
[1673979486948,1.70140241,1580.0,1579.9,32.3655058]
[1673979487957,1.08250241,1580.0,1579.9,46.8404058]
[1673979488216,1.08250241,1580.0,1579.9,50.05493938]
[1673979488377,1.08250241,1580.0,1579.9,51.49793938]
[1673979489063,1.08250241,1580.0,1579.9,54.99793938]
[1673979489271,1.08250241,1580.0,1579.9,51.49793938]
[1673979489974,0.066,1580.4,1580.0,6.07121255]
[1673979490161,0.19058233,1580.5,1580.3,4.55962407]
[1673979490371,0.19058233,1580.5,1580.4,6.34662407]
[1673979490581,0.19058233,1580.5,1580.4,19.7024858]
[1673979491797,0.19058233,1580.5,1580.4,21.1454858]
[1673979492003,0.19058233,1580.5,1580.4,25.19541638]
[1673979493375,0.19058233,1580.5,1580.4,32.96592638]
[1673979494638,0.27348865,1580.8,1580.4,43.16392638]
[1673979494875,0.20748865,1580.8,1580.7,3.11662407]
[1673979495024,0.20748865,1580.8,1580.7,25.32555407]
[1673979495207,0.20748865,1580.8,1580.7,28.56129048]
[1673979496445,0.20748865,1580.8,1580.7,25.38965407]
[1673979496965,1.64348865,1580.8,1580.7,6.18072407]
[1673979497121,2.11808865,1580.8,1580.7,6.18072407]
[1673979497329,1.86808865,1580.8,1580.7,6.18072407]
[1673979497702,2.05489751,1580.8,1580.7,6.18072407]
[1673979498239,1.86808865,1580.8,1580.7,6.18072407]
[1673979498414,1.9176,1580.9,1580.7,18.83334407]
[1673979498629,1.9176,1580.9,1580.8,3.11662407]
[1673979499389,1.9176,1580.9,1580.8,9.44253407]
[1673979499533,1.9176,1580.9,1580.8,9.50663407]
[1673979500910,2.36234914,1580.9,1580.8,0.0641]
[1673979501121,2.36234914,1580.9,1580.7,3.0]
[1673979501360,1.443,1580.8,1580.7,6.11662407]
[1673979501568,1.443,1580.8,1580.7,6.18072407]
[1673979501902,1.443,1580.8,1580.7,0.0641]
[1673979502074,2.41180291,1580.8,1580.6,3.0]
[1673979502290,1.9176,1580.7,1580.6,6.11662407]
[1673979502492,0.4746,1580.7,1580.6,18.83414407]
[1673979502707,1.506,1581.0,1580.6,25.39085407]
[1673979502899,1.44,1581.0,1580.7,3.11662407]
[1673979503112,1.44,1581.0,1580.8,15.99844407]
[1673979503375,20.929,1581.1,1580.9,3.11662407]
[1673979503529,20.929,1581.1,1581.0,18.97533]
[1673979503530,11.9134,1581.1,1581.0,18.97533]
[1673979503736,0.016,1581.1,1581.0,19.03943]
[1673979503996,0.006,1581.1,1581.0,22.38605407]
[1673979504429,1.96427451,1581.3,1581.0,21.93629121]
[1673979504430,0.04987451,1581.3,1581.0,21.93629121]
[1673979504621,0.04987451,1581.3,1581.1,17.81610887]
[1673979504961,0.006,1581.4,1581.1,17.81610887]
[1673979504962,0.006,1581.4,1581.2,22.90566294]
[1673979505107,0.21983988,1581.6,1581.3,6.11662407]
[1673979505485,0.25640982,1582.2,1581.5,3.11662407]
[1673979505801,8.37399192,1582.4,1581.9,14.0]
[1673979505802,1.1035653,1582.4,1581.9,14.0]
[1673979506012,1.1035653,1582.4,1582.1,1.442]
[1673979506013,0.064,1582.3,1582.1,1.442]
[1673979506153,1.124,1582.3,1582.2,0.23]
[1673979506363,1.1035653,1582.4,1582.2,25.88893]
[1673979506573,1.1035653,1582.4,1582.3,3.0]
[1673979507196,1.1035653,1582.4,1582.3,3.11662407]
[1673979507384,1.1035653,1582.4,1582.2,6.38441]
[1673979507385,1.5776653,1582.4,1582.2,0.0641]
[1673979507558,4.60076653,1582.3,1582.2,3.11662407]
[1673979507766,4.60076653,1582.3,1582.0,0.066]
[1673979507767,0.02389142,1582.2,1582.0,0.066]
[1673979507979,0.02389142,1582.2,1581.6,0.24507818]
[1673979507980,3.0,1582.1,1581.6,0.24507818]
[1673979508232,1.44,1581.7,1581.6,0.24507818]
[1673979508421,1.46389142,1581.7,1581.6,0.24507818]
[1673979508772,0.066,1581.9,1581.6,6.56758818]
[1673979508983,0.066,1582.1,1581.7,0.65675882]
[1673979509130,1.0,1582.0,1581.8,18.96549]
[1673979509343,1.0,1582.2,1581.9,8.131]
[1673979509609,1.0,1582.2,1582.0,18.96333]
[1673979509759,1.1035653,1582.4,1582.1,3.0]
[1673979509969,1.1035653,1582.4,1582.2,6.55031]
[1673979510233,2.5465653,1582.4,1582.2,7.25288173]
[1673979510461,1.1035653,1582.4,1582.2,7.25288173]
[1673979510614,1.1035653,1582.4,1582.3,3.63674173]
[1673979510983,1.1035653,1582.4,1582.3,10.18665173]
[1673979511124,1.1035653,1582.4,1582.3,10.25265173]
[1673979511711,1.1035653,1582.4,1582.3,4.93274173]
[1673979511925,1.1035653,1582.4,1582.3,7.34662407]
[1673979512233,1.1035653,1582.4,1582.3,6.41262407]
[1673979512970,1.1035653,1582.4,1582.3,14.64255221]
[1673979515704,1.1035653,1582.4,1582.3,13.3692758]
[1673979517565,3.0146653,1582.4,1582.3,0.066]
[1673979517917,3.0146653,1582.4,1582.1,6.38631]
[1673979517918,4.0146653,1582.4,1582.1,6.38631]
[1673979518126,0.4741,1582.3,1582.2,3.11662407]
[1673979518343,0.4741,1582.3,1582.2,9.43693407]
[1673979518653,1.5776653,1582.4,1582.2,18.03760248]
[1673979518981,1.5776653,1582.4,1582.3,9.43653407]
[1673979519119,1.5776653,1582.4,1582.3,12.50253407]
[1673979519331,1.5776653,1582.4,1582.3,9.38591]
[1673979519695,3.0206653,1582.4,1582.3,3.066]
[1673979519896,3.0206653,1582.4,1582.2,3.066]
[1673979520107,1.443,1582.3,1582.2,6.11662407]
[1673979520344,3.0136653,1582.4,1582.2,12.50293407]
[1673979520511,3.0136653,1582.4,1582.3,3.11662407]
[1673979520512,1.5776653,1582.4,1582.3,3.11662407]
[1673979520702,1.5776653,1582.4,1582.3,18.75644407]
[1673979520913,1.1035653,1582.4,1582.3,18.82244407]
[1673979521488,1.1035653,1582.4,1582.3,3.41262407]
[1673979521701,1.68802183,1582.4,1582.3,9.66653407]
[1673979522013,2.5465653,1582.4,1582.3,16.05244407]
[1673979522225,2.5465653,1582.4,1582.3,6.41262407]
[1673979522396,2.5465653,1582.4,1582.3,0.066]
[1673979522617,2.5465653,1582.4,1582.1,6.38649]
[1673979522824,1.9171,1582.3,1582.2,3.11662407]
[1673979523036,1.12745672,1582.4,1582.2,16.70755548]
[1673979523037,1.5776653,1582.4,1582.2,16.70755548]
[1673979523265,1.5776653,1582.4,1582.3,3.11662407]
[1673979523266,1.1035653,1582.4,1582.3,3.11662407]
[1673979523596,1.1035653,1582.4,1582.3,15.75644407]
[1673979523764,1.1035653,1582.4,1582.3,9.50253407]
[1673979523980,1.1035653,1582.4,1582.3,0.066]
[1673979524187,2.64292183,1582.4,1582.2,0.066]
[1673979524393,1.94099142,1582.3,1582.1,0.066]
[1673979524604,1.94099142,1582.3,1582.0,6.38704]
[1673979524954,1.94099142,1582.3,1582.0,9.50366407]
[1673979525175,2.36308275,1582.3,1582.0,9.50366407]
[1673979525744,2.36308275,1582.3,1582.0,3.18262407]
[1673979525973,2.36308275,1582.3,1582.0,3.11662407]
[1673979526644,2.36308275,1582.3,1582.1,3.11662407]
[1673979526645,1.94099142,1582.3,1582.1,3.11662407]
[1673979526793,0.49799142,1582.3,1582.2,9.43693407]
[1673979527002,0.49799142,1582.3,1582.2,9.50293407]
[1673979527363,1.93499142,1582.3,1582.2,0.066]
[1673979527696,2.87080809,1582.3,1581.9,12.70841]
[1673979527861,0.49799142,1582.3,1582.0,3.11662407]
[1673979528067,0.49799142,1582.3,1582.1,15.98804407]
[1673979528279,0.49799142,1582.3,1582.2,9.43693407]
[1673979528512,1.93399142,1582.3,1582.2,0.066]
[1673979528730,8.25390142,1582.3,1581.9,6.38726]
[1673979528918,3.56769409,1582.3,1582.0,3.11662407]
[1673979529115,1.93399142,1582.3,1582.1,9.43702407]
[1673979529357,1.93399142,1582.3,1582.1,0.066]
[1673979529579,1.443,1582.2,1582.0,0.066]
[1673979529742,1.443,1582.2,1581.9,6.38718]
[1673979529954,1.443,1582.2,1581.9,9.50380407]
[1673979530213,1.63709914,1582.2,1581.9,9.50380407]
[1673979530422,1.437,1582.1,1581.9,9.50380407]
[1673979530851,1.437,1582.1,1581.9,3.18262407]
[1673979531155,1.437,1582.1,1581.9,3.11662407]
[1673979531651,1.437,1582.1,1581.9,9.43806407]
[1673979531872,1.437,1582.1,1581.9,9.50406407]
[1673979532341,1.74440991,1582.1,1581.9,0.066]
[1673979532490,1.436,1582.0,1581.8,9.38767]
[1673979532697,1.9102,1582.0,1581.9,3.11662407]
[1673979532906,0.4742,1582.0,1581.9,9.43813407]
[1673979533135,1.9172,1582.1,1581.9,9.50413407]
[1673979533367,1.9172,1582.1,1581.9,15.82564407]
[1673979535189,1.443,1582.1,1581.9,15.82564407]
[1673979535540,1.443,1582.1,1581.9,15.82364407]
[1673979535755,1.443,1582.1,1581.9,15.82564407]
[1673979536624,1.443,1582.1,1581.9,9.50413407]
[1673979536894,1.6873,1582.1,1581.9,9.50413407]
[1673979537660,1.6873,1582.1,1581.9,0.066]
[1673979537999,1.6873,1582.1,1581.8,6.38767]
[1673979538183,2.1615,1582.1,1581.8,9.50429407]
[1673979538541,1.443,1582.0,1581.8,9.50429407]
[1673979539326,1.443,1581.9,1581.8,0.066]
[1673979539543,1.443,1581.9,1581.7,0.066]
[1673979539784,1.443,1581.8,1581.6,15.71087]
[1673979539974,1.431,1581.7,1581.6,15.82749407]
[1673979540187,1.431,1581.7,1581.6,9.50501407]
[1673979540844,1.509,1581.9,1581.6,9.50501407]
[1673979541035,2.494726,1581.9,1581.6,9.50501407]
[1673979541244,2.51861742,1581.9,1581.6,9.50501407]
[1673979541970,8.84016742,1581.9,1581.6,3.18262407]
[1673979542178,8.90616742,1581.9,1581.6,3.11662407]
[1673979542371,8.90616742,1581.9,1581.5,0.1038169]
[1673979542372,1.443,1581.7,1581.5,0.1038169]
[1673979542581,1.443,1581.6,1581.5,0.0378169]
[1673979543312,2.443,1581.6,1581.5,0.0378169]
[1673979543523,1.443,1581.6,1581.5,0.0378169]
[1673979543763,7.76571,1581.6,1581.5,0.0378169]
[1673979543983,7.83171,1581.6,1581.5,0.0378169]
[1673979544829,9.89619514,1581.6,1581.5,0.0378169]
[1673979545036,16.21890514,1581.6,1581.5,0.0378169]
[1673979547909,23.97961514,1581.6,1581.5,0.0378169]
[1673979548297,24.45391514,1581.6,1581.5,0.0378169]
[1673979549825,24.45391514,1581.6,1581.4,22.83343796]
[1673979549826,29.65028094,1581.6,1581.4,22.83343796]
[1673979550135,29.41138216,1581.5,1581.4,22.83343796]
[1673979550346,29.47738216,1581.5,1581.4,22.83343796]
[1673979550788,29.47738216,1581.5,1581.4,5.02987479]
[1673979551101,1.0,1581.4,1581.3,0.0266003]
[1673979551412,37.32755407,1581.4,1581.3,0.0266003]
[1673979551626,19.97173,1581.3,1581.1,0.0266003]
[1673979551780,2.867,1581.2,1581.1,0.0266003]
[1673979552013,21.83993,1581.2,1581.1,0.0266003]
[1673979552339,22.38043,1581.2,1581.1,0.0266003]
[1673979552987,20.95143,1581.2,1581.1,0.0266003]
[1673979553197,25.21505641,1581.2,1581.1,0.0266003]
[1673979553415,25.23894783,1581.2,1581.1,0.0266003]
[1673979556168,28.3555719,1581.2,1581.1,0.0266003]
[1673979559931,29.7935719,1581.2,1581.1,0.0266003]
[1673979560632,36.7215719,1581.2,1581.1,0.0266003]
[1673979560848,38.2835719,1581.2,1581.1,0.0266003]
[1673979561164,39.7265719,1581.2,1581.1,0.0266003]
[1673979561840,39.7265719,1581.2,1581.1,0.00780633]
[1673979562365,39.7265719,1581.2,1580.8,0.0266003]
[1673979562540,1.443,1580.9,1580.8,0.0266003]
[1673979562752,5.55962407,1580.9,1580.8,0.0266003]
[1673979562942,24.60215407,1580.9,1580.8,0.0266003]
[1673979564762,28.07665407,1580.9,1580.8,0.0266003]
[1673979564974,34.77465407,1580.9,1580.8,0.0266003]
[1673979565236,28.9817297,1580.8,1580.7,0.0266003]
[1673979565445,33.83735377,1580.8,1580.3,0.0327623]
[1673979565603,26.74316,1580.6,1580.3,0.0327623]
[1673979565811,29.92578407,1580.6,1580.3,0.0327623]
[1673979566017,18.98253,1580.4,1580.3,0.0327623]
[1673979566268,19.04853,1580.4,1580.3,0.0327623]
[1673979566968,20.48853,1580.4,1580.3,0.0327623]
[1673979568465,19.04853,1580.4,1580.3,0.0327623]
[1673979569829,12.72102,1580.4,1580.3,0.0327623]
[1673979570037,6.39351,1580.4,1580.3,0.0327623]
[1673979571817,0.066,1580.4,1580.3,0.0327623]
[1673979572044,10.7517,1580.5,1580.3,1.30166253]
[1673979572558,0.066,1580.5,1580.3,1.30166253]
[1673979572772,12.65374,1580.6,1580.3,5.6972866]
[1673979572773,0.066,1580.6,1580.3,5.6972866]
[1673979572964,0.066,1580.9,1580.4,7.38962407]
[1673979573173,17.82954,1581.0,1580.5,24.34591648]
[1673979573174,11.5701,1581.0,1580.5,24.34591648]
[1673979573417,0.066,1581.0,1580.7,12.6525]
[1673979573650,12.6483,1581.3,1580.7,12.7185]
[1673979573651,17.8942,1581.3,1580.7,12.7185]
[1673979573806,17.8942,1581.3,1580.8,3.0]
[1673979574181,17.8942,1581.3,1580.8,9.32575]
[1673979574533,26.94060442,1581.3,1580.8,5.270425]
[1673979574704,26.94060442,1581.3,1580.8,0.066]
[1673979574705,0.4745,1581.2,1580.8,0.066]
[1673979574865,4.86512407,1581.2,1580.5,30.206]
[1673979575230,0.66541282,1581.2,1580.6,3.34662407]
[1673979575381,0.19091282,1581.2,1580.7,9.44273407]
[1673979575592,10.31951254,1581.2,1580.7,0.066]
[1673979575833,6.79934,1581.1,1580.6,0.066]
[1673979576076,6.41473142,1581.1,1580.6,3.11662407]
[1673979576294,12.65026,1581.0,1580.5,30.206]
[1673979576431,14.46476,1581.0,1580.5,30.206]
[1673979576641,14.46476,1581.0,1580.5,0.066]
[1673979576642,6.32599,1580.8,1580.5,0.066]
[1673979576865,6.39199,1580.8,1580.3,6.4263323]
[1673979577075,6.39199,1580.8,1580.3,9.54295637]
[1673979577745,0.066,1580.8,1580.3,15.87086637]
[1673979577956,18.409446,1580.9,1580.3,15.87086637]
[1673979577957,18.475446,1580.9,1580.3,15.87086637]
[1673979578149,18.475446,1580.9,1580.3,21.29534318]
[1673979578360,18.475446,1580.9,1580.5,1.266]
[1673979578361,10.7032,1580.9,1580.5,1.266]
[1673979578717,10.7032,1580.9,1580.6,17.04188407]
[1673979578867,10.7032,1580.9,1580.6,17.10788407]
[1673979579412,10.7032,1580.9,1580.6,10.78125407]
[1673979579745,17.02871,1580.9,1580.6,0.066]
[1673979579936,1.702871,1580.8,1580.4,6.39318]
[1673979580795,8.028891,1580.8,1580.4,6.39318]
[1673979580949,8.094891,1580.8,1580.4,6.39318]
[1673979581428,14.420911,1580.8,1580.4,0.066]
[1673979581590,14.420911,1580.8,1580.4,3.0]
[1673979582190,0.066,1580.8,1580.5,3.11662407]
[1673979582406,10.7032,1580.9,1580.6,23.37575407]
[1673979582617,10.7032,1580.9,1580.6,23.44175407]
[1673979583503,0.066,1580.9,1580.6,23.44175407]
[1673979583874,23.33605,1581.1,1580.6,25.80892948]
[1673979584566,23.33605,1581.1,1580.6,24.52992948]
[1673979584567,0.066,1581.1,1580.6,24.52992948]
[1673979584781,0.25691282,1581.2,1580.7,7.39562407]
[1673979584969,0.19091282,1581.2,1581.0,1.273]
[1673979585446,0.19091282,1581.2,1581.0,6.32491]
[1673979585602,0.19091282,1581.2,1581.0,6.39091]
[1673979586285,0.18877364,1581.2,1581.0,6.39091]
[1673979586906,0.18877364,1581.2,1581.0,0.066]
[1673979587125,0.18877364,1581.2,1580.9,15.71647]
[1673979587324,0.18877364,1581.2,1580.9,18.36024241]
[1673979587538,0.18877364,1581.2,1581.0,6.32504]
[1673979587752,0.18877364,1581.2,1581.0,6.39104]
[1673979587917,0.18877364,1581.2,1581.0,12.71615]
[1673979588136,0.18877364,1581.2,1581.0,22.15788407]
[1673979588337,0.18877364,1581.2,1581.1,2.21578841]
[1673979588546,0.18877364,1581.2,1581.1,6.32471]
[1673979588809,0.18877364,1581.2,1581.1,6.39071]
[1673979589186,0.18877364,1581.2,1581.1,0.066]
[1673979589398,0.18877364,1581.2,1581.0,9.50766407]
[1673979590253,0.18877364,1581.2,1581.0,15.83277407]
[1673979590607,0.18877364,1581.2,1581.0,18.73984672]
[1673979594329,0.18877364,1581.2,1581.0,25.06495672]
[1673979594538,0.00077364,1581.2,1581.1,3.11662407]
[1673979594749,0.00077364,1581.2,1581.1,9.5293658]
[1673979594963,0.00077364,1581.2,1581.1,30.81556698]
[1673979595175,0.00077364,1581.2,1581.1,30.17882525]
[1673979596025,0.00077364,1581.2,1581.1,31.39398827]
[1673979596270,1.0,1581.5,1581.3,25.29564]